fUSD/lending_fUSD_20260218
["ID","MTS","AMOUNT","RATE_DAILY","PERIOD"]
[405939121,1771428652127,-500.0,0.00014302,2]
[405939122,1771428652137,-500.0,0.00014302,2]
[405939123,1771428652147,-500.0,0.00014302,2]
[405939124,1771428652157,-500.0,0.00014302,2]
[405939125,1771428652172,-500.0,0.00014302,2]
[405939126,1771428652181,-500.0,0.00014302,2]
[405939127,1771428652191,-500.0,0.00014302,2]
[405939128,1771428652200,-500.0,0.00014302,2]
[405939129,1771428652211,-500.0,0.00014302,2]
[405939130,1771428652221,-500.0,0.00014302,2]
[405939131,1771428652231,-277.35679052,0.00014302,2]
[405939132,1771428652241,-335.0,0.00014309,2]
[405939133,1771428652250,-9191.47,0.00014384,2]
[405939134,1771428652259,-290.97041073,0.00014623,2]
[405939135,1771428652269,-265.01,0.000147,2]
[405939136,1771428652278,-65011.7864302,0.00014723,2]
[405939137,1771428652288,-69267.84188777,0.00014805,2]
[405939138,1771428652297,-524.16891164,0.00014823,2]
[405939139,1771428652307,-155.62782963,0.00014823,2]
[405939140,1771428652316,-1500.0,0.00014823,2]
[405939141,1771428652326,-1005.57889956,0.00014823,2]
[405939142,1771428652336,-1500.0,0.00014823,2]
[405939143,1771428652345,-1500.0,0.00014823,2]
[405939144,1771428652354,-687.09841863,0.00014823,2]
[405939145,1771428652363,-506.41325356,0.00014823,2]
[405939146,1771428652373,-1037.4625703,0.00014823,2]
[405939147,1771428652383,-1500.0,0.00014823,2]
[405939148,1771428652392,-1500.0,0.00014823,2]
[405939149,1771428652402,-1500.0,0.00014823,2]
[405939150,1771428652411,-1500.0,0.00014823,2]
[405939151,1771428652420,-287.61899177,0.0001485,2]
[405939152,1771428652430,-1000.0,0.0001488,2]
[405939153,1771428652439,-151.5462571,0.00015,3]
[405939154,1771428652448,-2146.46674762,0.00015,14]
[405939155,1771428652458,-250.0,0.00015,2]
[405939156,1771428652467,-9191.47,0.00015068,2]
[405939157,1771428652478,-2664.00413153,0.00015302,2]
[405939158,1771428652490,-1465.77482029,0.00015371,2]
[405939159,1771428652500,-2000.0,0.00015371,2]
[405939160,1771428652510,-2000.0,0.00015371,2]
[405939161,1771428652521,-1605.03701467,0.00015371,2]
[405939162,1771428652530,-1801.75028282,0.00015371,2]
[405939163,1771428652539,-2000.0,0.00015371,2]
[405939164,1771428652548,-830.45995604,0.00015371,2]
[405939165,1771428652558,-552.47642339,0.00015384,7]
[405939166,1771428652568,-298.26089446,0.00015398,2]
[405939167,1771428652579,-265.07,0.0001563,2]
[405939168,1771428652588,-482.75960727,0.00015635,2]
[405939169,1771428652599,-290.97041073,0.00015715,2]
[405939170,1771428652609,-9191.47,0.00015753,2]
[405939171,1771428652618,-220.89,0.00015771,2]
[405939172,1771428652627,-69267.84188777,0.00015803,2]
[405939173,1771428652636,-482.21334745,0.00015869,2]
[405939174,1771428652645,-150.0,0.000159,2]
[405939175,1771428652654,-150.0,0.000159,2]
[405939176,1771428652663,-460.08113192,0.00015919,2]
[405939177,1771428652673,-1783.85919121,0.00015919,2]
[405939178,1771428652683,-1534.2126926,0.00015919,2]
[405939179,1771428652692,-309.29654756,0.00015946,2]
[405939180,1771428652701,-2000.0,0.00016,2]
[405939181,1771428652712,-482.75960727,0.00016026,2]
[405939182,1771428652721,-506.0,0.0001605,2]
[405939183,1771428652731,-393.11,0.00016111,2]
[405939184,1771428652742,-348.354952,0.00016158,7]
[405939185,1771428652752,-5000.00061283,0.000162,5]
[405939186,1771428652762,-265.01,0.0001635,2]
[405939187,1771428652772,-2836.0,0.000164,2]
[405939188,1771428652782,-482.75960727,0.00016417,2]
[405939189,1771428652791,-841.0,0.00016438,2]
[405939190,1771428652800,-9191.47,0.00016438,2]
[405939191,1771428652811,-320.74051982,0.00016494,2]
[405939192,1771428652822,-2000.0,0.000165,2]
[405939193,1771428652832,-2000.0,0.000165,2]
[405939194,1771428652842,-2664.00413153,0.00016601,2]
[405939195,1771428652852,-841.0,0.00016712,2]
[405939196,1771428652861,-167.05,0.00016712,2]
[405939197,1771428652870,-2836.0,0.0001672,2]
[405939198,1771428652879,-160.0,0.00016767,2]
[405939199,1771428652889,-200.0,0.00016792,2]
[405939200,1771428652899,-69267.84188777,0.00016802,2]
[405939201,1771428652910,-482.75960727,0.00016807,2]
[405939202,1771428652919,-290.97041073,0.00016808,2]
[405939203,1771428652928,-259.0,0.00016808,2]
[405939204,1771428652936,-2556.33728001,0.000169,4]
[405939205,1771428652946,-428.48119247,0.00016915,2]
[405939206,1771428652955,-323.0,0.00016953,2]
[405939207,1771428652965,-506.0,0.00016977,2]
[405939208,1771428652974,-841.0,0.00016986,2]
[405939209,1771428652984,-300.0,0.00017,2]
[405939210,1771428652994,-651728.01697585,0.00017,2]
[405939211,1771428653003,-2836.0,0.0001704,2]
[405939212,1771428653012,-332.60791905,0.00017042,2]
[405939213,1771428653021,-168.0,0.00017087,2]
[405939214,1771428653030,-5050.94522285,0.000171,2]
[405939215,1771428653040,-326.90545528,0.00017103,2]
[405939216,1771428653049,-168.0,0.00017181,2]
[405939217,1771428653059,-168.0,0.00017258,2]
[405939218,1771428653068,-841.0,0.0001726,2]
[405939219,1771428653078,-350.0,0.00017275,2]
[405939220,1771428653087,-168.0,0.00017299,2]
[405939221,1771428653098,-350.0,0.00017327,2]
[405939222,1771428653108,-168.0,0.0001735,2]
[405939223,1771428653118,-160.0,0.0001736,2]
[405939224,1771428653127,-842.0,0.0001736,2]
[405939225,1771428653136,-2828.0,0.0001736,2]
[405939226,1771428653146,-984.0,0.0001736,2]
[405939227,1771428653156,-842.0,0.0001737,2]
[405939228,1771428653169,-168.0,0.00017427,2]
[405939229,1771428653179,-168.0,0.00017472,2]
[405939230,1771428653189,-2000.0,0.000175,2]
[405939231,1771428653199,-2500.0,0.000175,6]
[405939232,1771428653211,-314.0,0.00017509,2]
[405939233,1771428653220,-841.0,0.00017534,2]
[405939234,1771428653230,-168.0,0.00017567,2]
[405939235,1771428653241,-344.91441206,0.0001759,2]
[405939236,1771428653252,-2500.0,0.000176,6]
[405939237,1771428653262,-168.0,0.00017621,2]
[405939238,1771428653272,-350.0,0.00017635,2]
[405939239,1771428653282,-6311.5146418,0.0001764,2]
[405939240,1771428653292,-393.11,0.00017644,2]
[405939241,1771428653303,-2836.0,0.0001768,2]
[405939242,1771428653314,-350.0,0.00017698,2]
[405939243,1771428653324,-784.44122355,0.000177,2]
[405939244,1771428653335,-2500.0,0.000177,6]
[405939245,1771428653348,-403.0,0.000177,5]
[405939246,1771428653359,-314.0,0.00017741,2]
[405939247,1771428653369,-10000.0,0.000178,2]
[405939248,1771428653379,-951.9112,0.000178,2]
[405939249,1771428653389,-4588.3903,0.000178,2]
[405939250,1771428653398,-69267.84188777,0.000178,2]
[405939251,1771428653408,-2500.0,0.000178,6]
[405939252,1771428653418,-500.0,0.00017808,2]
[405939253,1771428653428,-841.0,0.00017808,2]
[405939254,1771428653438,-800.0,0.00017808,2]
[405939255,1771428653448,-250.0,0.00017808,20]
[405939256,1771428653457,-250.0,0.00017808,20]
[405939257,1771428653467,-250.0,0.00017808,20]
[405939258,1771428653477,-250.0,0.00017808,20]
[405939259,1771428653487,-250.0,0.00017808,20]
[405939260,1771428653496,-250.0,0.00017808,20]
[405939261,1771428653506,-250.0,0.00017808,20]
[405939262,1771428653515,-175.581631,0.00017808,20]
[405939263,1771428653525,-2000.0,0.0001782,2]
[405939264,1771428653535,-2000.0,0.0001782,2]
[405939265,1771428653544,-500.0,0.00017829,2]
[405939266,1771428653553,-500.0,0.00017829,2]
[405939267,1771428653563,-500.0,0.00017829,2]
[405939268,1771428653572,-519.42,0.00017829,2]
[405939269,1771428653581,-500.0,0.00017829,2]
[405939270,1771428653591,-500.0,0.00017829,2]
[405939271,1771428653603,-737.28,0.00017829,2]
[405939272,1771428653612,-500.0,0.00017829,2]
[405939273,1771428653622,-879.35,0.00017829,2]
[405939274,1771428653631,-500.0,0.00017829,2]
[405939275,1771428653640,-500.0,0.00017829,2]
[405939276,1771428653650,-500.0,0.00017829,2]
[405939277,1771428653659,-224017.3167248,0.0001783,2]
[405939278,1771428653669,-1004.26991434,0.0001786,2]
[405939279,1771428653678,-500.0,0.00017863,2]
[405939280,1771428653687,-879.35,0.00017863,2]
[405939281,1771428653697,-500.0,0.00017899,2]
[405939282,1771428653706,-500.0,0.00017899,2]
[405939283,1771428653715,-500.0,0.00017899,2]
[405939284,1771428653725,-500.0,0.00017899,2]
[405939285,1771428653735,-250.1,0.00017899,2]
[405939286,1771428653744,-500.0,0.00017899,2]
[405939287,1771428653753,-500.0,0.00017899,2]
[405939288,1771428653763,-500.0,0.00017899,2]
[405939289,1771428653772,-500.0,0.00017899,2]
[405939290,1771428653782,-500.0,0.00017899,2]
[405939291,1771428653791,-500.0,0.00017899,2]
[405939292,1771428653800,-500.0,0.00017899,2]
[405939293,1771428653809,-500.0,0.00017899,2]
[405939294,1771428653819,-500.0,0.00017899,2]
[405939295,1771428653828,-500.0,0.00017899,2]
[405939296,1771428653837,-501.18,0.00017899,2]
[405939297,1771428653848,-500.0,0.00017899,2]
[405939298,1771428653857,-500.0,0.00017899,2]
[405939299,1771428653867,-500.0,0.00017899,2]
[405939300,1771428653876,-500.0,0.00017899,2]
[405939301,1771428654012,-500.0,0.00017899,2]
[405939302,1771428654046,-500.0,0.00017899,2]
[405939303,1771428654055,-500.0,0.00017899,2]
[405939304,1771428654065,-500.0,0.00017899,2]
[405939305,1771428654074,-500.0,0.00017899,2]
[405939306,1771428654083,-500.0,0.00017899,2]
[405939307,1771428654093,-500.0,0.00017899,2]
[405939308,1771428654103,-500.0,0.00017899,2]
[405939309,1771428654113,-500.0,0.00017899,2]
[405939310,1771428654123,-500.0,0.00017899,2]
[405939311,1771428654132,-312.74253882,0.00017899,2]
[405939312,1771428654141,-500.0,0.00017899,2]
[405939313,1771428654150,-500.0,0.00017899,2]
[405939314,1771428654165,-500.0,0.00017899,2]
[405939315,1771428654176,-509.72616168,0.00017899,2]
[405939316,1771428654185,-737.28,0.00017899,2]
[405939317,1771428654195,-737.28,0.00017899,2]
[405939318,1771428654206,-737.28,0.00017899,2]
[405939319,1771428654215,-737.28,0.00017899,2]
[405939320,1771428654224,-737.28,0.00017899,2]
[405939321,1771428654234,-737.28,0.00017899,2]
[405939322,1771428654245,-737.28,0.00017899,2]
[405939323,1771428654254,-737.28,0.00017899,2]
[405939324,1771428654265,-737.28,0.00017899,2]
[405939325,1771428654274,-737.28,0.00017899,2]
[405939326,1771428654284,-737.28,0.00017899,2]
[405939327,1771428654293,-737.28,0.00017899,2]
[405939328,1771428654302,-737.28,0.00017899,2]
[405939329,1771428654312,-737.28,0.00017899,2]
[405939330,1771428654321,-737.28,0.00017899,2]
[405939331,1771428654331,-737.28,0.00017899,2]
[405939332,1771428654340,-737.28,0.00017899,2]
[405939333,1771428654353,-737.28,0.00017899,2]
[405939334,1771428654362,-737.28,0.00017899,2]
[405939335,1771428654372,-737.28,0.00017899,2]
[405939336,1771428654382,-737.28,0.00017899,2]
[405939337,1771428654391,-737.31,0.00017899,2]
[405939338,1771428654400,-500.0,0.00017899,2]
[405939339,1771428654409,-500.0,0.00017899,2]
[405939340,1771428654419,-486.30947207,0.00017899,2]
[405939341,1771428654428,-879.35,0.00017899,2]
[405939342,1771428654437,-879.35,0.00017899,2]
[405939343,1771428654447,-879.35,0.00017899,2]
[405939344,1771428654456,-879.35,0.00017899,2]
[405939345,1771428654465,-879.35,0.00017899,2]
[405939346,1771428654474,-879.5,0.00017899,2]
[405939347,1771428654485,-500.0,0.00017899,2]
[405939348,1771428654495,-500.0,0.00017899,2]
[405939349,1771428654504,-500.0,0.00017899,2]
[405939350,1771428654514,-500.0,0.00017899,2]
[405939351,1771428654523,-500.0,0.00017899,2]
[405939352,1771428654533,-500.0,0.00017899,2]
[405939353,1771428654542,-500.0,0.00017899,2]
[405939354,1771428654555,-500.0,0.00017899,2]
[405939355,1771428654564,-500.0,0.00017899,2]
[405939356,1771428654574,-500.0,0.00017899,2]
[405939357,1771428654583,-591.86390297,0.00017899,2]
[405939358,1771428654593,-500.0,0.00017899,2]
[405939359,1771428654603,-500.0,0.00017899,2]
[405939360,1771428654612,-500.0,0.00017899,2]
[405939361,1771428654622,-500.0,0.00017899,2]
[405939362,1771428654631,-500.0,0.00017899,2]
[405939363,1771428654640,-500.0,0.00017899,2]
[405939364,1771428654650,-500.0,0.00017899,2]
[405939365,1771428654659,-185.0783203,0.00017899,2]
[405939366,1771428654668,-500.0,0.00017899,2]
[405939367,1771428654678,-500.0,0.00017899,2]
[405939368,1771428654687,-500.0,0.00017899,2]
[405939369,1771428654697,-32853.2111,0.000179,2]
[405939370,1771428654706,-1000.0,0.000179,2]
[405939371,1771428654716,-947671.879,0.000179,2]
[405939372,1771428654725,-150.0,0.000179,2]
[405939373,1771428654734,-290.97041073,0.000179,2]
[405939374,1771428654747,-150.0,0.000179,2]
[405939375,1771428654756,-5008.1800114,0.000179,3]
[405939376,1771428654765,-150.0,0.000179,2]
[405939377,1771428654774,-150.0,0.000179,2]
[405939378,1771428654783,-150.0,0.000179,2]
[405939379,1771428654792,-3079.0,0.000179,6]
[405939380,1771428654801,-2664.00413153,0.000179,2]
[405939381,1771428654810,-150.0,0.000179,2]
[405939382,1771428654820,-1924.93846263,0.000179,2]
[405939383,1771428654829,-500.0,0.000179,2]
[405939384,1771428654839,-500.0,0.000179,2]
[405939385,1771428654850,-500.0,0.000179,2]
[405939386,1771428654859,-500.0,0.000179,2]
[405939387,1771428654869,-500.0,0.000179,2]
[405939388,1771428654878,-500.0,0.000179,2]
[405939389,1771428654890,-500.0,0.000179,2]
[405939390,1771428654902,-500.0,0.000179,2]
[405939391,1771428654911,-500.0,0.000179,2]
[405939392,1771428654920,-500.0,0.000179,2]
[405939393,1771428654931,-500.0,0.000179,2]
[405939394,1771428654942,-500.0,0.000179,2]
[405939395,1771428654952,-500.0,0.000179,2]
[405939396,1771428654961,-500.0,0.000179,2]
[405939397,1771428654971,-500.0,0.000179,2]
[405939398,1771428654981,-500.0,0.000179,2]
[405939399,1771428654991,-500.0,0.000179,2]
[405939400,1771428655002,-500.0,0.000179,2]
[405939401,1771428655013,-500.0,0.000179,2]
[405939402,1771428655023,-500.0,0.000179,2]
[405939403,1771428655035,-500.0,0.000179,2]
[405939404,1771428655046,-500.0,0.000179,2]
[405939405,1771428655057,-500.0,0.000179,2]
[405939406,1771428655067,-500.0,0.000179,2]
[405939407,1771428655077,-500.0,0.000179,2]
[405939408,1771428655088,-500.0,0.000179,2]
[405939409,1771428655098,-500.0,0.000179,2]
[405939410,1771428655109,-500.0,0.000179,2]
[405939411,1771428655120,-500.0,0.000179,2]
[405939412,1771428655129,-500.0,0.000179,2]
[405939413,1771428655139,-500.0,0.000179,2]
[405939414,1771428655148,-500.0,0.000179,2]
[405939415,1771428655158,-500.0,0.000179,2]
[405939416,1771428655171,-500.0,0.000179,2]
[405939417,1771428655181,-500.0,0.000179,2]
[405939418,1771428655190,-500.0,0.000179,2]
[405939419,1771428655200,-500.0,0.000179,2]
[405939420,1771428655210,-500.0,0.000179,2]
[405939421,1771428655219,-500.0,0.000179,2]
[405939422,1771428655229,-500.0,0.000179,2]
[405939423,1771428655240,-500.0,0.000179,2]
[405939424,1771428655249,-500.0,0.000179,2]
[405939425,1771428655258,-500.0,0.000179,2]
[405939426,1771428655267,-500.0,0.000179,2]
[405939427,1771428655276,-500.0,0.000179,2]
[405939428,1771428655286,-500.0,0.000179,2]
[405939429,1771428655295,-500.0,0.000179,2]
[405939430,1771428655305,-500.0,0.000179,2]
[405939431,1771428655314,-472.68340978,0.000179,2]
[405939432,1771428655323,-506.0,0.00017904,3]
[405939433,1771428655343,-500.0,0.00017918,2]
[405939434,1771428655353,-314.0,0.0001792,2]
[405939435,1771428655364,-25949.63612918,0.00017954,2]
[405939436,1771428655373,-350.0,0.00017969,2]
[405939437,1771428655382,-1000.0,0.0001797,2]
[405939438,1771428655392,-500.0,0.0001797,2]
[405939439,1771428655401,-1000.0,0.0001797,2]
[405939440,1771428655411,-500.0,0.0001797,2]
[405939441,1771428655420,-1000.0,0.0001797,2]
[405939442,1771428655429,-500.0,0.0001797,2]
[405939443,1771428655438,-1000.0,0.0001797,2]
[405939444,1771428655447,-900.0,0.0001797,2]
[405939445,1771428655457,-1144.90207911,0.0001797,2]
[405939446,1771428655468,-500.0,0.00017972,2]
[405939447,1771428655485,-1961.0,0.00017973,2]
[405939448,1771428655494,-151.86043113,0.00017982,2]
[405939449,1771428655503,-2078.03494059,0.0001799,2]
[405939450,1771428655513,-183.30982713,0.00017993,2]
[405939451,1771428655523,-12341.7233973,0.00017994,2]
[405939452,1771428655533,-173494.3017828,0.00017994,2]
[405939453,1771428655542,-1149.4383345,0.00017994,2]
[405939454,1771428655551,-155.0,0.00017999,2]
[405939455,1771428655560,-150.0,0.00017999,2]
[405939456,1771428655570,-300.0,0.00017999,2]
[405939457,1771428655579,-666.0,0.00017999,2]
[405939458,1771428655588,-300.0,0.00017999,2]
[405939459,1771428655598,-300.0,0.00017999,2]
[405939460,1771428655608,-200.0,0.00017999,5]
[405939461,1771428655618,-200.0,0.00017999,5]
[405939462,1771428655627,-200.0,0.00017999,5]
[405939463,1771428655637,-200.0,0.00017999,5]
[405939464,1771428655646,-578.20924308,0.00017999,5]
[405939465,1771428655656,-245.2765902,0.00017999,5]
[405939466,1771428655665,-599.60298507,0.00017999,5]
[405939467,1771428655674,-300.0,0.00017999,2]
[405939468,1771428655683,-621.78829552,0.00017999,5]
[405939469,1771428655693,-506.71767848,0.00017999,5]
[405939470,1771428655702,-500.0,0.00017999,5]
[405939471,1771428655712,-500.0,0.00017999,5]
[405939472,1771428655721,-500.0,0.00017999,5]
[405939473,1771428655730,-500.0,0.00017999,5]
[405939474,1771428655740,-500.0,0.00017999,5]
[405939475,1771428655749,-500.0,0.00017999,5]
[405939476,1771428655759,-500.0,0.00017999,5]
[405939477,1771428655768,-500.0,0.00017999,5]
[405939478,1771428655777,-500.0,0.00017999,5]
[405939479,1771428655786,-500.0,0.00017999,5]
[405939480,1771428655795,-500.0,0.00017999,5]
[405939481,1771428655805,-500.0,0.00017999,5]
[405939482,1771428655814,-500.0,0.00017999,5]
[405939483,1771428655823,-500.0,0.00017999,5]
[405939484,1771428655832,-500.0,0.00017999,5]
[405939485,1771428655843,-500.0,0.00017999,5]
[405939486,1771428655852,-500.0,0.00017999,5]
[405939487,1771428655862,-500.0,0.00017999,5]
[405939488,1771428655871,-259.07488276,0.00017999,5]
[405939489,1771428655884,-500.0,0.00017999,5]
[405939490,1771428655894,-500.0,0.00017999,5]
[405939491,1771428655903,-500.0,0.00017999,5]
[405939492,1771428655913,-500.0,0.00017999,5]
[405939493,1771428655922,-693.3919763,0.00017999,5]
[405939494,1771428655932,-719.04747942,0.00017999,5]
[405939495,1771428655941,-745.65223616,0.00017999,5]
[405939496,1771428655950,-773.2413689,0.00017999,5]
[405939497,1771428655959,-801.85129955,0.00017999,5]
[405939498,1771428655969,-831.51979763,0.00017999,5]
[405939499,1771428655978,-862.28603014,0.00017999,5]
[405939500,1771428655987,-894.19061326,0.00017999,5]
[405939501,1771428655996,-927.27566595,0.00017999,5]
[405939502,1771428656005,-961.58486559,0.00017999,5]
[405939503,1771428656014,-997.16350561,0.00017999,5]
[405939504,1771428656023,-504.510834,0.00017999,5]
[405939505,1771428656033,-151.0,0.00017999,5]
[405939506,1771428656042,-151.0,0.00017999,5]
[405939507,1771428656051,-151.0,0.00017999,5]
[405939508,1771428656061,-151.0,0.00017999,5]
[405939509,1771428656070,-151.0,0.00017999,5]
[405939510,1771428656080,-151.0,0.00017999,5]
[405939511,1771428656090,-151.0,0.00017999,5]
[405939512,1771428656100,-151.0,0.00017999,5]
[405939513,1771428656110,-151.0,0.00017999,5]
[405939514,1771428656119,-151.0,0.00017999,5]
[405939515,1771428656129,-151.0,0.00017999,5]
[405939516,1771428656139,-174.61919141,0.00017999,5]
[405939517,1771428656149,-181.08010149,0.00017999,5]
[405939518,1771428656158,-187.78006525,0.00017999,5]
[405939519,1771428656171,-194.72792766,0.00017999,5]
[405939520,1771428656180,-201.93286099,0.00017999,5]
[405939521,1771428656190,-209.40437684,0.00017999,5]
[405939522,1771428656199,-217.15233878,0.00017999,5]
[405939523,1771428656210,-225.18697532,0.00017999,5]
[405939524,1771428656220,-233.51889341,0.00017999,5]
[405939525,1771428656229,-242.15909246,0.00017999,5]
[405939526,1771428656241,-251.11897888,0.00017999,5]
[405939527,1771428656250,-260.4103811,0.00017999,5]
[405939528,1771428656260,-270.0455652,0.00017999,5]
[405939529,1771428656270,-280.03725112,0.00017999,5]
[405939530,1771428656283,-290.39862941,0.00017999,5]
[405939531,1771428656293,-266.96362876,0.00017999,5]
[405939532,1771428656303,-300.0,0.00017999,2]
[405939533,1771428656313,-666.0,0.00017999,2]
[405939534,1771428656323,-150.0,0.00017999,2]
[405939535,1771428656332,-216.49361738,0.00017999,2]
[405939536,1771428656341,-2063504.1622146,0.00018,2]
[405939537,1771428710684,199.0,0.0001905,120]
[405939539,1771428722171,188.0,0.00018,30]
[405939540,1771428773063,333.0,0.0001905,120]
[405939541,1771428830295,169.18206332,0.00018,30]
[405939542,1771428923758,159.0,0.00018,30]
[405939543,1771429176424,-1800.0,7.7e-05,2]
[405939544,1771429176452,-250.0,7.744e-05,2]
[405939545,1771429176481,-500.0,7.788e-05,2]
[405939546,1771429176514,-2200.0,7.8e-05,2]
[405939547,1771429176582,-1500.0,7.8e-05,2]
[405939548,1771429217964,1508.0,0.00018,30]
[405939549,1771429218151,192.0,0.00018,30]
[405939550,1771429218189,300.0,0.00018,30]
[405939551,1771429218547,1508.0,0.00018,30]
[405939552,1771429218983,152.0,0.00018,30]
[405939553,1771429219022,153.0,0.00018,30]
[405939554,1771429219089,1508.0,0.00018,30]
[405939555,1771429219505,152.0,0.00018,30]
[405939556,1771429219661,153.0,0.00018,30]
[405939557,1771429219723,1508.0,0.00018,30]
[405939558,1771429220025,152.0,0.00018,30]
[405939559,1771429220191,153.0,0.00018,30]
[405939560,1771429220252,1508.0,0.00018,30]
[405939561,1771429220719,152.0,0.00018,30]
[405939562,1771429220761,1508.0,0.00018,30]
[405939563,1771429220928,153.0,0.00018,30]
[405939564,1771429221251,152.0,0.00018,30]
[405939565,1771429221296,1508.0,0.00018,30]
[405939566,1771429221591,152.0,0.00018,30]
[405939567,1771429222000,1508.0,0.00018,30]
[405939568,1771429222116,152.0,0.00018,30]
[405939569,1771429222537,1508.0,0.00018,30]
[405939570,1771429222957,152.0,0.00018,30]
[405939571,1771429223038,1508.0,0.00018,30]
[405939572,1771429223309,152.0,0.00018,30]
[405939573,1771429223545,1508.0,0.00018,30]
[405939574,1771429284311,5778.535,0.00018,30]
[405939575,1771429298253,-4000.0,7.8e-05,2]
[405939582,1771429832271,-151.0,7.697e-05,2]
[405939583,1771429832283,-151.0,7.697e-05,2]
[405939584,1771429832294,-8.78486107,7.698e-05,2]
[405939585,1771429832306,-241.21513893,7.698e-05,2]
[405939586,1771429832316,-1200.0,7.698e-05,2]
[405939587,1771429832325,-150.0,7.699e-05,2]
[405939588,1771429832335,-300.0,7.699e-05,2]
[405939590,1771429832344,-198.07705186,7.699e-05,2]
[405939592,1771429832354,-500.0,7.699e-05,2]
[405939594,1771429832368,-500.0,7.699e-05,2]
[405939595,1771429832377,-447.17761209,7.699e-05,2]
[405939597,1771429832387,-6737.6189,7.7e-05,2]
[405939599,1771429832396,-4892.20100191,7.7e-05,2]
[405939601,1771429832407,-2362.29480225,7.7e-05,2]
[405939603,1771429832417,-6538.58069408,7.7e-05,2]
[405939640,1771429838159,-5859.73429082,7.7e-05,2]
[405939641,1771429838170,-119199.99999997,7.7e-05,2]
[405939642,1771429838909,-18747.34575192,7.7e-05,2]
[405939643,1771429838920,-781.08,7.7e-05,2]
[405939644,1771429839156,-507.0,7.7e-05,2]
[405939650,1771429840354,-3341111.76345905,7.7e-05,2]
[405939651,1771429840365,-1600.0,7.7e-05,2]
[405939652,1771429840375,-1283.29230843,7.7e-05,2]
[405939653,1771429840385,-250.0,7.709e-05,2]
[405939654,1771429840394,-150.0,7.773e-05,2]
[405939655,1771429840404,-170.0,7.781e-05,2]
[405939656,1771429840414,-3200.0,7.8e-05,2]
[405939657,1771429840423,-98587.05001948,7.9e-05,2]
[405939658,1771429840433,-4800.0,7.9e-05,2]
[405939659,1771429840442,-200.0,7.953e-05,2]
[405939660,1771429840451,-222.0,8e-05,2]
[405939661,1771429840460,-6400.0,8e-05,2]
[405939662,1771429840470,-9999.99,8.058e-05,2]
[405939663,1771429840480,-999.99,8.058e-05,2]
[405939664,1771429840490,-9999.99,8.058e-05,2]
[405939665,1771429840500,-5298.58,8.058e-05,2]
[405939666,1771429840513,-150.99,8.058e-05,2]
[405939667,1771429840522,-299.99,8.058e-05,2]
[405939668,1771429840531,-6212.8,8.058e-05,2]
[405939669,1771429840541,-575.0,8.073e-05,2]
[405939670,1771429840550,-1319.0,8.088e-05,2]
[405939671,1771429840559,-367.0,8.088e-05,2]
[405939672,1771429840568,-233.0,8.104e-05,2]
[405939673,1771429840578,-188.0,8.178e-05,2]
[405939674,1771429840588,-20031.798547,8.178e-05,2]
[405939675,1771429840597,-1500.0,8.206e-05,2]